bitfinex-derivatives/quotes_ETHF0:USTF0_20251117
["timestamp","ask_amount","ask_price","bid_price","bid_amount"]
[1763410834886,0.54235,2990.6,2989.8,3.21042247]
[1763410835093,0.54235,2990.6,2989.9,0.00501421]
[1763410835393,3.2078,2990.4,2989.9,0.00501421]
[1763410835892,3.2078,2990.0,2989.9,0.00501421]
[1763410836092,0.91,2989.8,2989.0,3.2078]
[1763410836388,1.45249,2989.8,2989.0,3.2078]
[1763410836887,3.2078,2990.3,2989.7,3.2078]
[1763410837090,0.00903907,2990.3,2990.0,3.2078]
[1763410837286,0.00903907,2990.3,2989.7,0.00860709]
[1763410837287,0.00903907,2990.3,2990.1,3.2078]
[1763410837892,0.91,2990.9,2990.1,3.2078]
[1763410838089,3.2078,2990.5,2989.8,3.2078]
[1763410838488,0.91,2990.9,2990.3,3.2078]
[1763410838689,0.91,2990.9,2989.7,0.00860709]
[1763410838690,3.2078,2990.5,2989.7,3.21640709]
[1763410838992,3.2078,2990.5,2989.7,0.00860709]
[1763410839589,0.91758992,2990.9,2990.2,3.2078]
[1763410839789,3.2078,2990.4,2989.7,0.00860709]
[1763410840297,3.2078,2990.7,2990.0,3.2078]
[1763410840592,0.91758992,2990.9,2990.3,3.2078]
[1763410840784,0.91758992,2990.9,2990.6,3.2078]
[1763410841188,0.91758992,2990.9,2990.7,3.2078]
[1763410841387,0.91758992,2990.9,2990.1,3.2078]
[1763410841596,0.91758992,2990.9,2990.4,3.2078]
[1763410841794,0.00758992,2990.9,2990.7,3.2078]
[1763410842193,1.45987992,2990.9,2990.4,3.2078]
[1763410842390,1.45987992,2990.9,2989.7,40.80860709]
[1763410842391,3.2078,2990.8,2990.1,3.2078]
[1763410842592,0.91758992,2990.9,2990.1,3.2078]
[1763410842993,0.91758992,2990.9,2990.5,3.2078]
[1763410843202,0.91758992,2990.9,2989.7,0.00860709]
[1763410843203,3.2078,2990.6,2989.7,0.00860709]
[1763410843497,0.91758992,2990.9,2990.0,3.2078]
[1763410843697,3.75013,2990.7,2989.7,3.21640709]
[1763410843897,1.45988992,2990.9,2990.5,3.2078]
[1763410844101,0.54231,2990.8,2990.2,3.2078]
[1763410844401,1.45987992,2990.9,2990.2,3.2078]
[1763410844589,3.2078,2990.8,2990.2,3.2078]
[1763410845091,0.91758992,2990.9,2989.9,3.2078]
[1763410845396,0.91758992,2990.9,2990.5,3.2078]
[1763410845592,0.91758992,2990.9,2990.8,3.2078]
[1763410846298,0.00758992,2990.9,2990.8,3.2078]
[1763410846500,0.00758992,2990.9,2990.5,3.2078]
[1763410846700,0.00758992,2990.9,2990.8,3.2078]
[1763410848000,0.00758992,2990.9,2990.5,3.2078]
[1763410848398,3.74993,2991.8,2990.8,3.2078]
[1763410848606,0.54216,2991.6,2990.8,3.2078]
[1763410848797,0.54218,2991.5,2990.8,3.2078]
[1763410849103,3.2078,2991.8,2990.8,4.09779492]
[1763410849499,0.5422,2991.4,2990.8,4.09779492]
[1763410849697,3.2078,2991.5,2990.8,4.09779492]
[1763410849894,0.00501421,2991.6,2990.5,3.2078]
[1763410849895,0.91,2991.0,2990.5,3.2078]
[1763410850104,0.54229,2990.9,2990.5,3.2078]
[1763410850407,0.91,2991.0,2990.5,3.2078]
[1763410850607,0.54231,2990.8,2990.5,4.09779492]
[1763410850811,0.54231,2990.8,2990.5,3.2078]
[1763410851006,0.91,2991.0,2990.3,0.88999492]
[1763410851007,0.54234,2990.6,2990.3,0.88999492]
[1763410851306,0.54234,2990.6,2990.2,4.39927289]
[1763410851307,0.54235,2990.6,2990.4,0.8968936]
[1763410851505,0.91,2991.0,2990.4,0.8968936]
[1763410851807,0.54233,2990.7,2990.4,0.8968936]
[1763410852006,0.91,2991.0,2990.4,0.8968936]
[1763410852208,0.91,2991.0,2990.2,3.2078]
[1763410852209,0.91,2991.0,2990.9,3.2078]
[1763410852404,0.91,2991.0,2990.9,4.1046936]
[1763410852604,0.91,2991.0,2990.9,3.2078]
[1763410852909,0.54229,2990.9,2990.7,0.8968936]
[1763410853402,1.45227,2991.0,2990.6,0.8968936]
[1763410853608,1.45227,2991.0,2990.7,0.8968936]
[1763410853813,0.91,2991.0,2990.7,0.8968936]
[1763410854301,0.5423,2990.9,2990.7,0.8968936]
[1763410854502,0.54232,2990.7,2990.6,0.8968936]
[1763410854807,3.2078,2990.8,2990.5,1.19147289]
[1763410854808,3.2078,2990.8,2990.5,0.8968936]
[1763410855009,0.54234,2990.6,2990.5,0.8968936]
[1763410855303,3.2078,2990.8,2990.1,1.19147289]
[1763410855304,0.54238,2990.4,2990.1,1.19147289]
[1763410855496,3.2078,2990.8,2990.1,1.19147289]
[1763410855700,1.45249,2989.8,2989.5,1.79215267]
[1763410855899,0.91,2989.8,2989.3,3.2078]
[1763410856100,1.45249,2989.8,2989.3,3.2078]
[1763410856309,1.45249,2989.8,2989.7,7.09e-06]
[1763410856310,7.45249,2989.8,2989.7,7.09e-06]
[1763410856502,0.54259,2989.3,2988.7,4.99995267]
[1763410856702,0.5426,2989.2,2988.7,3.2078]
[1763410856910,3.2078,2989.5,2988.7,3.2078]
[1763410857211,0.54267,2988.9,2988.7,3.2078]
[1763410857399,0.54267,2988.9,2988.7,3.21201484]
[1763410857802,0.54267,2988.8,2988.7,3.21201484]
[1763410857996,0.8445,2988.9,2988.7,0.00421484]
[1763410858402,0.54259,2989.3,2988.8,3.2078]
[1763410858704,0.54262,2989.1,2988.8,3.2078]
[1763410858901,3.21104083,2989.5,2988.7,0.00421484]
[1763410859100,0.8445,2988.9,2988.7,0.00421484]
[1763410859301,0.54267,2988.8,2988.7,0.00421484]
[1763410859501,0.54271,2988.6,2988.5,0.00501421]
[1763410859702,0.54283,2987.9,2987.6,3.2078]
[1763410859903,0.54269,2988.7,2987.6,3.2078]
[1763410860102,3.2078,2988.8,2987.9,3.2078]
[1763410860303,3.2078,2988.4,2987.6,4.99995267]
[1763410860499,3.2078,2988.4,2987.6,3.21124984]
[1763410860699,0.54285,2987.8,2987.7,0.00501421]
[1763410860902,4.0523,2988.0,2987.0,3.2078]
[1763410861113,0.8445,2987.1,2986.7,3.2078]
[1763410861314,3.2078,2988.2,2987.0,3.2078]
[1763410861610,0.00501421,2988.3,2988.0,3.2078]
[1763410861812,0.00501421,2988.3,2988.2,3.2078]
[1763410862017,0.00745461,2988.3,2988.2,3.21084631]
[1763410863314,0.55021461,2988.3,2988.2,0.00304631]
[1763410864115,0.00745461,2988.3,2988.2,0.00304631]
[1763410865018,3.2078,2989.7,2988.2,9.34944631]
[1763410865206,2.5755804,2991.0,2988.2,9.34944631]
[1763410865207,3.2078,2990.4,2989.4,3.2078]
[1763410865409,0.54262,2989.1,2988.6,3.2078]
[1763410865716,3.2078,2989.8,2988.9,3.2078]
[1763410865904,0.8445,2989.0,2988.2,3.21084631]
[1763410866107,0.00501421,2988.9,2988.5,3.2078]
[1763410866312,0.54273,2988.5,2988.3,0.00501421]
[1763410866815,0.54273,2988.5,2986.8,11.54084211]
[1763410866816,0.8445,2988.0,2986.5,3.2078]
[1763410867018,0.54302,2986.9,2986.5,3.2078]
[1763410867214,0.8445,2987.0,2986.5,3.2078]
[1763410867418,0.54303,2986.9,2986.5,3.2078]
[1763410867719,0.0042187,2986.9,2986.5,3.21167049]
[1763410868016,0.0042187,2986.9,2986.5,0.00387049]
[1763410868210,0.54305,2986.7,2986.5,0.00387049]
[1763410868404,3.2120187,2986.9,2986.5,3.21167049]
[1763410868405,0.5472387,2986.9,2986.5,3.21167049]
[1763410868608,0.0042187,2986.9,2986.5,0.00387049]
[1763410868817,0.54305,2986.7,2986.5,0.00387049]
[1763410869218,0.0042187,2986.9,2986.6,3.2078]
[1763410869415,0.5472387,2986.9,2986.6,3.2078]
[1763410869613,0.54307,2986.6,2986.5,0.00387049]
[1763410870920,0.54307,2986.6,2986.4,0.00501421]
[1763410871421,0.0042187,2986.9,2985.5,3.2078]
[1763410871422,0.8445,2986.0,2985.5,3.2078]
[1763410871626,0.5433,2985.4,2983.9,7.84715267]
[1763410871925,0.8445,2986.0,2985.1,3.2078]
[1763410872116,0.54341,2984.8,2984.5,3.2078]
[1763410872323,0.00502277,2984.9,2984.5,3.2078]
[1763410872525,0.00502277,2984.9,2984.8,3.2078]
[1763410872832,0.8445,2986.0,2984.8,3.2078]
[1763410873029,0.54331,2985.3,2984.8,3.2078]
[1763410873226,3.2078,2985.9,2985.1,3.2078]
[1763410873432,3.2078,2985.9,2984.8,3.2078]
[1763410873433,0.54336,2985.0,2984.8,3.2078]
[1763410873922,0.00502277,2985.2,2984.8,3.2078]
[1763410874125,0.00502277,2985.2,2985.1,3.2078]
[1763410874329,1.38786,2985.0,2984.8,3.2078]
[1763410874526,3.2078,2984.9,2983.9,0.00433661]
[1763410874742,0.8445,2985.0,2983.9,0.00433661]
[1763410874743,1.38804,2984.0,2983.9,0.00433661]
[1763410874928,1.38804,2984.0,2983.7,0.033516]
[1763410874929,0.54358,2983.8,2983.7,0.033516]
[1763410875125,0.54358,2983.8,2983.7,1.6e-05]
[1763410875436,0.54356,2983.9,2983.7,1.6e-05]
[1763410875622,0.5437,2983.2,2983.0,3.2078]
[1763410875826,0.8445,2983.0,2982.8,3.2078]
[1763410876026,0.00502277,2983.4,2983.1,3.2078]
[1763410876336,0.00881859,2983.4,2983.1,3.2078]
[1763410877135,0.54367,2983.3,2982.8,0.00333632]
[1763410877332,0.00881859,2983.4,2982.8,0.00333632]
[1763410877530,0.8445,2983.0,2982.8,0.00333632]
[1763410878031,0.00881859,2983.4,2982.9,6.0]
[1763410878233,0.00881859,2983.4,2983.3,3.2078]
[1763410878625,3.2078,2984.4,2983.3,12.559]
[1763410878824,3.2078,2984.7,2983.9,3.2078]
[1763410879135,4.59567,2985.0,2984.2,3.2078]
[1763410879335,4.0523,2985.0,2984.2,3.2078]
[1763410879638,0.54841277,2984.9,2984.3,0.00502277]
[1763410879833,0.00502277,2984.9,2984.3,0.00502277]
[1763410880033,0.5434,2984.8,2984.3,0.00502277]
[1763410880331,0.00502277,2984.9,2984.3,0.00502277]
[1763410880332,0.00502277,2984.9,2984.7,3.2078]
[1763410880523,0.00381902,2985.0,2984.7,3.2078]
[1763410880729,0.54342,2984.7,2984.3,0.00502277]
[1763410881229,3.2078,2984.8,2984.3,0.00502277]
[1763410881437,0.54345,2984.5,2984.3,0.00502277]
[1763410882031,0.00502277,2984.8,2984.3,0.00502277]
[1763410882227,0.00502277,2984.8,2984.3,3.21282277]
[1763410882636,3.21282277,2984.8,2984.3,0.00502277]
[1763410882842,3.75125,2984.5,2984.3,0.00502277]
[1763410883229,0.00502277,2984.8,2984.3,0.00502277]
[1763410883230,3.21282277,2984.8,2984.3,0.00502277]
[1763410883536,0.54345,2984.5,2984.3,0.00502277]
[1763410883741,0.54357,2983.9,2983.4,3.2078]
[1763410884034,3.2078,2983.8,2983.1,3.2078]
[1763410884241,0.8226,2984.0,2983.5,3.2078]
[1763410884435,3.2078,2983.8,2983.2,3.2078]
[1763410884639,4.0304,2983.5,2982.8,3.21113632]
[1763410884839,3.2078,2983.3,2982.9,0.00502277]
[1763410885040,3.2078,2983.0,2982.9,0.00502277]
[1763410885234,0.54372,2983.0,2982.8,0.00333632]
[1763410885436,0.8226,2983.5,2982.9,3.2078]
[1763410885628,3.2078,2983.9,2982.9,3.2078]
[1763410885940,3.2078,2983.3,2982.8,0.00333632]
[1763410886240,0.00502277,2983.3,2982.8,0.00333632]
[1763410886439,3.2078,2983.2,2982.8,0.00333632]
[1763410886733,0.00502277,2983.3,2982.8,0.00333632]
[1763410887130,3.75149,2983.2,2982.8,0.00333632]
[1763410887333,0.54369,2983.2,2982.8,0.00333632]
[1763410887529,0.00502277,2983.3,2982.8,0.00333632]
[1763410887939,0.00502277,2983.3,2983.0,3.2078]
[1763410888743,3.153,2985.6,2983.0,3.2078]
[1763410888744,3.2078,2984.1,2983.0,3.2078]
[1763410888935,3.2078,2984.7,2983.8,3.2078]
[1763410889137,3.2078,2984.7,2984.1,3.2078]
[1763410889437,1.712,2986.4,2984.1,3.2078]
[1763410889438,4.03421902,2985.0,2984.1,3.2078]
[1763410889738,1.39257,2984.4,2984.3,0.00502277]
[1763410890039,0.8491,2984.4,2984.3,2.277e-05]
[1763410890232,1.39257,2984.4,2984.3,2.277e-05]
[1763410890935,0.8491,2984.4,2984.3,2.277e-05]
[1763410891135,1.39257,2984.4,2984.3,2.277e-05]
[1763410891340,0.00502277,2984.8,2984.3,2.277e-05]
[1763410891541,0.54343,2984.7,2984.3,2.277e-05]
[1763410891841,3.2078,2984.6,2984.3,2.277e-05]
[1763410892041,0.00502277,2984.8,2984.3,2.277e-05]
[1763410892643,0.00502277,2984.8,2984.4,3.2078]
[1763410893038,0.00502277,2984.8,2984.3,2.277e-05]
[1763410893444,0.8491,2984.4,2984.3,2.277e-05]
[1763410894045,1.39257,2984.4,2984.3,2.277e-05]
[1763410894342,0.8491,2984.4,2984.3,2.277e-05]
[1763410894551,4.60037,2984.4,2984.3,2.277e-05]
[1763410894740,1.39257,2984.4,2984.3,2.277e-05]
[1763410894937,0.8491,2984.4,2984.3,2.277e-05]
[1763410895252,1.39257,2984.4,2984.3,2.277e-05]
[1763410895437,0.00502277,2984.8,2984.3,2.277e-05]
[1763410896247,0.8491,2984.4,2984.3,2.277e-05]
[1763410896442,0.00502277,2984.8,2984.3,2.277e-05]
[1763410896745,0.54341,2984.7,2984.3,3.20782277]
[1763410896947,0.00502277,2984.8,2984.3,3.20782277]
[1763410897149,0.54345,2984.6,2984.3,3.20782277]
[1763410897447,0.00502277,2984.8,2984.3,3.20782277]
[1763410897646,0.54842277,2984.8,2984.6,3.2078]
[1763410897845,0.00502277,2984.8,2984.3,3.20782277]
[1763410898146,0.00502277,2984.8,2984.4,3.2078]
[1763410898344,0.00502277,2984.8,2984.7,3.2078]
[1763410898542,0.00502277,2984.8,2984.3,2.277e-05]
[1763410899245,0.00502277,2984.8,2984.5,3.2078]
[1763410900050,0.00502277,2984.8,2984.3,2.277e-05]
[1763410900253,3.2078,2985.9,2984.5,4.38977367]
[1763410900442,3.751,2985.9,2985.0,4.40623404]
[1763410900641,3.751,2985.9,2985.0,3.2078]
[1763410900642,0.54321,2985.8,2985.0,3.2078]
[1763410900951,3.2078,2985.9,2985.0,4.40623404]
[1763410901247,3.2078,2985.1,2985.0,0.00281882]
[1763410901453,3.75114,2985.1,2985.0,0.00281882]
[1763410903455,3.2078,2985.1,2985.0,0.00281882]
[1763410903653,3.75114,2985.1,2985.0,0.00281882]
[1763410905256,0.54334,2985.1,2985.0,0.00281882]
[1763410905454,3.2078,2985.4,2985.0,0.00281882]
[1763410905753,3.21282277,2985.7,2985.0,3.21061882]
[1763410905951,3.21282277,2985.7,2985.0,4.40905286]
[1763410906151,0.00502277,2985.7,2985.6,3.2078]
[1763410906348,3.2078,2986.4,2985.6,3.2078]
[1763410906545,3.2078,2986.7,2985.9,3.2078]
[1763410906945,4.0569,2987.0,2985.9,4.40623404]
[1763410907149,4.0569,2987.0,2986.4,3.2078]
[1763410907355,0.5431,2986.5,2986.4,0.00502277]
[1763410907542,0.8491,2986.2,2985.3,1.19843404]
[1763410907741,0.54331,2985.3,2984.7,1.19843404]
[1763410907948,3.2078,2985.4,2984.8,1.19843404]
[1763410908150,0.54321,2985.8,2985.0,3.21061882]
[1763410908356,4.0569,2986.2,2985.4,3.2078]
[1763410908557,3.75106,2985.6,2985.0,0.00281882]
[1763410908753,0.00502277,2985.6,2985.0,3.21564159]
[1763410908948,0.00502277,2985.6,2985.3,3.2078]
[1763410909758,4.0569,2986.2,2985.3,3.2078]
[1763410910159,0.8491,2986.2,2985.6,3.2078]
[1763410910858,0.85412277,2986.2,2985.6,3.2078]
[1763410911157,3.2078,2986.0,2985.2,3.2078]
[1763410911355,0.54323,2985.8,2985.5,3.2078]
[1763410911660,0.54327,2985.5,2985.2,3.2078]
[1763410911860,0.54325,2985.6,2985.2,3.2078]
[1763410912458,3.2078,2986.0,2985.2,3.2078]
[1763410912459,0.54322,2985.8,2985.2,3.2078]
[1763410912665,0.54325,2985.6,2985.2,3.2078]
[1763410912864,3.2078,2985.6,2985.0,0.00784159]
[1763410913064,0.54327,2985.5,2985.2,3.2078]
[1763410913265,0.54322,2985.8,2985.2,3.2078]
[1763410913464,0.5433,2985.4,2985.0,0.00784159]
[1763410913650,3.2078,2985.7,2985.0,0.00784159]
[1763410913856,3.2078,2986.0,2985.0,0.00784159]
[1763410914065,0.54327,2985.5,2985.0,0.00784159]
[1763410914361,3.2078,2986.0,2985.0,0.00784159]
[1763410914663,0.8491,2985.6,2985.0,0.00784159]
[1763410915862,0.85412277,2986.2,2985.4,3.2078]
[1763410916055,3.2078,2986.0,2985.3,3.2078]
[1763410916257,0.8491,2985.6,2985.3,3.2078]
[1763410916563,0.8491,2985.6,2985.1,3.2078]
[1763410916754,0.8491,2985.6,2985.4,3.2078]
[1763410916960,0.54324,2985.7,2985.1,4.10530155]
[1763410917157,0.54322,2985.8,2985.5,3.2078]
[1763410917357,0.85412277,2986.2,2985.5,3.2078]
[1763410917553,0.54319,2986.0,2985.5,3.2078]
[1763410917861,3.2078,2986.1,2985.3,0.89750155]
[1763410918065,0.00502277,2986.2,2985.6,3.2078]
[1763410918265,3.2078,2986.8,2985.9,3.2078]
[1763410918562,0.54303,2986.8,2985.9,3.2078]
[1763410918762,0.7222,2986.4,2985.9,3.2078]
[1763410919066,1.26531,2986.4,2985.9,3.2078]
[1763410919359,1.27033277,2986.4,2985.9,3.2078]
[1763410919563,0.54312,2986.3,2985.9,3.2078]
[1763410919754,0.72722277,2986.4,2985.9,3.2078]
[1763410919950,0.00502277,2986.4,2985.9,3.2078]
[1763410920156,0.00502277,2986.4,2986.2,3.2078]
[1763410920357,0.00502277,2986.4,2985.8,0.89750155]
[1763410920358,0.54312,2986.3,2985.8,0.89750155]
[1763410920564,3.2078,2986.1,2985.4,0.89750155]
[1763410920758,3.2078,2986.1,2985.3,3.2078]
[1763410920759,3.2078,2986.0,2985.3,3.2078]
[1763410920958,3.2078,2986.1,2985.4,3.2078]
[1763410921165,0.72722277,2986.4,2986.0,3.2078]
[1763410921166,0.00502277,2986.4,2986.0,3.2078]
[1763410921462,0.54323,2985.7,2985.6,0.11378218]
[1763410921760,0.54327,2985.5,2985.0,0.00784159]
[1763410921960,0.31966892,2985.6,2985.0,0.00784159]
[1763410922160,0.72722277,2986.4,2985.5,3.2078]
[1763410922366,0.00502277,2986.4,2985.9,3.2078]
[1763410922762,3.93502277,2986.4,2985.5,1.19843404]
[1763410922970,3.93502277,2986.4,2985.3,4.99995267]
[1763410922971,3.2078,2986.1,2985.4,1.19843404]
[1763410923173,0.54328,2985.5,2985.3,3.2078]
[1763410923369,0.54322,2985.8,2985.3,3.2078]
[1763410923576,0.00502277,2986.4,2985.6,3.2078]
[1763410923870,0.85173412,2987.0,2985.6,3.2078]
[1763410923871,0.00263412,2987.0,2986.2,3.2078]
[1763410924063,0.00263412,2987.0,2986.5,3.2078]
[1763410924970,0.00765689,2987.0,2986.5,3.2078]
[1763410925166,0.00765689,2987.0,2986.8,3.2078]
[1763410925371,0.00765689,2987.0,2986.6,0.00502277]
[1763410925571,0.00765689,2987.0,2986.6,3.21282277]
[1763410925771,0.54301,2986.9,2986.6,3.21282277]
[1763410925962,0.00765689,2987.0,2986.6,3.21282277]
[1763410928177,0.00765689,2987.0,2986.9,3.2078]
[1763410930182,0.55064689,2987.0,2986.6,0.00502277]
[1763410930482,3.75846689,2987.0,2986.6,0.00502277]
[1763410930679,3.21545689,2987.0,2986.6,0.00502277]
[1763410930883,3.2078,2986.7,2985.9,3.2078]
[1763410931084,3.2078,2986.3,2985.4,1.19843404]
[1763410931385,0.54318,2986.0,2985.5,3.2078]
[1763410931592,0.54316,2986.2,2985.5,3.2078]
[1763410931779,0.7222,2986.4,2986.0,3.2078]
[1763410932085,3.2078,2986.7,2986.0,3.2078]
[1763410932283,0.54308,2986.6,2986.0,3.2078]
[1763410932586,0.54312,2986.3,2985.7,3.2078]
[1763410932772,0.7222,2986.4,2985.7,3.2078]
[1763410932978,0.7222,2986.4,2986.3,3.2078]
[1763410933281,0.7222,2986.4,2986.0,3.2078]
[1763410933482,0.7222,2986.4,2985.6,1.79717544]
[1763410933483,0.54318,2986.0,2985.6,0.00502277]
[1763410933783,0.54317,2986.1,2985.6,0.00502277]
[1763410933984,3.2078,2986.1,2985.6,0.00502277]
[1763410934282,0.54315,2986.2,2985.6,3.21282277]
[1763410934585,0.7222,2986.4,2985.9,3.2078]
[1763410934787,0.54315,2986.2,2985.9,3.2078]
[1763410935384,3.2078,2986.7,2985.9,3.2078]
[1763410935582,0.54311,2986.4,2985.9,3.2078]
[1763410935789,3.2078,2986.7,2985.9,3.2078]
[1763410935984,0.54308,2986.6,2986.2,3.2078]
[1763410936179,0.00765689,2987.0,2986.5,3.2078]
[1763410936684,0.8491,2988.0,2986.9,3.2078]
[1763410936685,3.2078,2987.6,2986.9,3.2078]
[1763410936893,3.75069,2987.6,2986.9,3.2078]
[1763410937182,4.0569,2988.0,2986.9,3.2078]
[1763410937383,3.2078,2987.7,2986.9,3.2078]
[1763410937580,0.54296,2987.3,2987.0,0.00502277]
[1763410937785,0.54292,2987.5,2987.0,0.00502277]
[1763410937982,3.2078,2987.4,2987.0,0.00502277]
[1763410938184,3.75078,2987.1,2987.0,0.00502277]
[1763410938486,0.54298,2987.1,2987.0,0.00502277]
[1763410939484,3.75078,2987.1,2987.0,0.00502277]
[1763410939684,0.7051,2986.4,2986.1,1.19843404]
[1763410939885,0.54302,2986.9,2986.1,3.2078]
[1763410940083,0.54302,2986.9,2986.4,3.2078]
[1763410940384,0.54302,2986.9,2986.7,3.2078]
[1763410940682,3.2078,2987.4,2986.5,0.00502277]
[1763410941189,0.54306,2986.7,2986.5,0.00502277]
[1763410941389,0.7051,2987.2,2986.5,0.00502277]
[1763410941687,0.54303,2986.8,2986.5,0.00502277]
[1763410941885,0.54307,2986.6,2986.5,0.00502277]
[1763410943586,0.54318,2986.0,2985.8,4.40623404]
[1763410943885,0.54311,2986.4,2985.8,3.2078]
[1763410944099,0.54305,2986.7,2986.3,3.2078]
[1763410944392,0.54303,2986.9,2986.6,3.2078]
[1763410944583,3.75078,2987.1,2986.5,0.00502277]
[1763410944784,0.54303,2986.9,2986.6,3.2078]
[1763410945190,0.54307,2986.6,2986.5,0.00502277]
[1763410945993,0.54321,2985.8,2985.7,3.2078]
[1763410946195,0.7051,2986.4,2985.7,3.2078]
[1763410946490,0.54333,2985.2,2985.0,1.20125286]
[1763410946690,0.00267673,2985.2,2985.1,3.2078]
[1763410947389,0.54334,2985.1,2985.0,0.00281882]
[1763410948187,0.00267673,2985.2,2985.0,0.00281882]
[1763410948491,0.00267673,2985.2,2985.1,3.2078]
[1763410949094,0.00502277,2985.4,2985.1,9.2078]
[1763410949391,3.2078,2986.5,2985.2,5.14175267]
[1763410949586,3.99611801,2987.8,2985.2,5.14175267]
[1763410949587,3.2078,2986.8,2985.9,3.2078]
[1763410949786,0.54318,2986.0,2985.7,1.20051289]
[1763410950086,0.54316,2986.2,2985.8,3.2078]
[1763410950287,0.00276765,2986.2,2985.8,3.2078]
[1763410950488,0.54319,2985.9,2985.5,3.2078]
[1763410950693,0.00276765,2986.2,2985.5,3.2078]
[1763410950694,0.54318,2986.0,2985.8,3.2078]
[1763410950890,0.00276765,2986.2,2985.8,3.2078]
[1763410951090,0.54318,2986.1,2985.8,3.2078]
[1763410951395,0.54319,2986.0,2985.8,3.2078]
[1763410951688,0.54319,2985.9,2985.8,3.2078]
[1763410952096,0.54327,2985.5,2985.4,3.2078]
[1763410952597,0.54332,2985.2,2985.1,3.2078]
[1763410952794,0.54327,2985.5,2985.1,3.2078]
[1763410953096,0.54331,2985.3,2985.1,3.2078]
[1763410953292,0.6535,2985.6,2985.1,3.2078]
[1763410953596,0.54329,2985.4,2985.1,3.2078]
[1763410953798,0.6535,2985.6,2985.1,3.2078]
[1763410954000,0.54591765,2986.2,2985.4,3.2078]
[1763410954202,0.00276765,2986.2,2986.1,3.2078]
[1763410954992,3.2078,2987.5,2986.1,3.2078]
[1763410955187,3.2078,2987.5,2985.9,1.79215267]
[1763410955188,3.2078,2987.1,2986.5,3.2078]
[1763410955692,0.6535,2987.2,2986.5,3.2078]
[1763410955898,0.6535,2987.2,2986.0,1.1998078]
[1763410955899,1.19646,2987.2,2986.9,3.2078]
[1763410956100,0.00502277,2987.1,2986.9,3.2078]
[1763410956690,0.8491,2988.0,2986.9,10.4076078]
[1763410956885,3.2078,2988.3,2987.7,3.2078]
[1763410957086,1.19632,2988.0,2987.3,3.2078]
[1763410957393,3.2078,2988.5,2987.7,3.2078]
[1763410957590,0.6535,2988.0,2987.7,3.2078]
[1763410957900,0.54292,2987.4,2986.6,3.21282277]
[1763410958200,0.6561852,2988.0,2987.2,0.00423572]
[1763410958201,0.54294,2987.3,2987.2,0.00423572]
[1763410958895,0.6535,2987.2,2986.6,0.54808277]
[1763410959090,0.6535,2987.2,2986.8,0.54303]
[1763410959297,3.8613,2987.2,2986.6,0.54807277]
[1763410959802,3.8613,2987.2,2986.6,0.55100666]
[1763410959993,3.2078,2987.5,2986.8,0.54301]
[1763410960193,3.2078,2987.2,2986.8,0.54301]
[1763410960393,3.2078,2987.5,2986.8,0.54301]
[1763410960797,3.2078,2987.2,2986.8,0.54301]
[1763410961000,3.8613,2987.2,2986.6,0.00795666]
[1763410961297,3.2078,2986.7,2986.6,0.00795666]
[1763410961801,9.2078,2986.7,2985.7,1.7430278]
[1763410962010,3.2078,2986.2,2985.5,3.2078]
[1763410962298,3.2078,2987.0,2986.0,1.1998078]
[1763410962499,3.2078,2986.4,2986.0,1.1998078]
[1763410962702,3.2078,2987.1,2986.2,0.54314]
[1763410962907,0.00502277,2986.5,2986.3,3.75092]
[1763410963204,0.00502277,2986.5,2986.3,0.54311]
[1763410963405,0.00502277,2986.5,2986.1,1.7429578]
[1763410963597,0.00502277,2986.5,2986.0,0.0025729]
[1763410963799,3.2078,2986.2,2986.0,0.0025729]
[1763410965299,3.2078,2986.2,2985.9,0.00502277]
[1763410966397,3.2078,2986.2,2985.9,0.00916523]
[1763410967714,3.2078,2986.2,2984.9,1.1998078]
[1763410968007,3.2078,2985.5,2984.7,3.2078]
[1763410968201,0.6535,2985.6,2985.2,0.54332]
[1763410968397,0.6535,2985.6,2985.1,0.54332]
[1763410968603,3.2078,2986.2,2985.6,0.54324]
[1763410968808,3.2078,2985.8,2985.6,0.55101596]
[1763410969012,3.2078,2985.8,2985.6,0.00777596]
[1763410969213,3.2078,2985.8,2985.6,0.55101596]
[1763410969422,3.2078,2985.8,2985.6,0.00777596]
[1763410969911,3.2078,2985.8,2985.2,0.54331]
[1763410970113,3.2078,2985.4,2985.2,0.54331]
[1763410970312,3.2078,2985.4,2984.8,3.2078]
[1763410970313,3.2078,2985.4,2984.8,0.54339]
[1763410970703,3.2078,2985.4,2984.5,3.2078]
[1763410970906,3.2078,2985.2,2984.7,0.00502277]
[1763410971103,0.6535,2985.5,2984.7,2.277e-05]
[1763410971104,0.6535,2984.8,2984.7,2.277e-05]
[1763410971301,0.6535,2984.8,2984.5,0.00238724]
[1763410971501,3.2078,2984.6,2983.6,3.2078]
[1763410971707,3.2078,2984.2,2983.6,3.2078]
[1763410971905,3.2078,2984.8,2984.0,3.2078]
[1763410972214,0.00502277,2984.7,2984.6,0.54343]
[1763410972407,0.00502277,2984.7,2984.6,3.75460329]
[1763410972816,0.00502277,2984.7,2984.6,3.21117329]
[1763410973010,0.00502277,2984.7,2984.6,0.00337329]
[1763410973312,3.21282277,2984.7,2984.6,0.00337329]
[1763410973514,3.21282277,2984.7,2983.7,3.2078]
[1763410973708,3.2078,2984.6,2984.1,0.54351]
[1763410974510,0.00502277,2984.7,2984.2,3.2078]
[1763410974712,0.00502277,2984.7,2984.5,3.2078]
[1763410974907,0.00502277,2984.7,2984.6,0.54343]
[1763410977708,3.8613,2985.5,2984.5,3.2078]
[1763410977915,1.6935,2985.4,2985.2,0.54332]
[1763410978111,1.6935,2985.4,2985.3,0.5433]
[1763410978710,4.9013,2985.4,2985.3,0.5433]
[1763410978916,4.9013,2985.4,2985.2,0.54332]
[1763410979414,1.6935,2985.4,2985.3,0.5433]
[1763410979919,1.6935,2985.4,2985.2,0.54332]
[1763410980321,4.9013,2985.4,2985.1,0.00502277]
[1763410980625,3.2078,2985.4,2985.1,0.00502277]
[1763410980822,3.2078,2985.4,2985.2,0.54332]
[1763410981023,3.2078,2985.4,2985.1,0.00502277]